fUSD/lending_fUSD_20240720
["ID","MTS","AMOUNT","RATE_DAILY","PERIOD"]
[332720177,1721473944327,-500.0,0.00034794,14]
[332720178,1721473944337,-500.0,0.00034794,14]
[332720179,1721473944347,-12096.44,0.00034794,14]
[332720180,1721473944357,-4375.25,0.00034794,14]
[332720181,1721473944367,-3186.86,0.00034794,14]
[332720182,1721473944377,-1721.7,0.00034794,14]
[332720183,1721473944387,-1788.12,0.00034794,14]
[332720184,1721473944397,-863.68,0.00034794,14]
[332720185,1721473944407,-566.34,0.00034794,14]
[332720186,1721473944417,-3156.35,0.00034794,14]
[332720187,1721473944427,-1476.06,0.00034794,14]
[332720188,1721473944437,-500.0,0.00034794,14]
[332720189,1721473944447,-1444.17,0.00034794,14]
[332720190,1721473944456,-869.37,0.00034794,14]
[332720191,1721473944466,-500.0,0.00034794,14]
[332720192,1721473944476,-2375.96,0.00034794,14]
[332720193,1721473944486,-1947.99,0.00034794,14]
[332720194,1721473944496,-500.0,0.00034794,14]
[332720195,1721473944506,-500.0,0.00034794,14]
[332720196,1721473944516,-500.0,0.00034794,14]
[332720197,1721473944526,-1524.46,0.00034794,14]
[332720198,1721473944536,-1888.96,0.00034794,14]
[332720199,1721473944546,-2153.9,0.00034794,14]
[332720200,1721473944555,-2486.1,0.00034794,14]
[332720201,1721473944565,-1505.49,0.00034794,14]
[332720202,1721473944575,-500.0,0.00034794,14]
[332720203,1721473944585,-1005.44,0.00034794,14]
[332720204,1721473944595,-500.0,0.00034794,14]
[332720205,1721473944605,-500.0,0.00034794,14]
[332720206,1721473944615,-500.0,0.00034794,14]
[332720207,1721473944625,-1923.6,0.00034794,14]
[332720208,1721473944635,-766.54,0.00034794,14]
[332720209,1721473944645,-854.35,0.00034794,14]
[332720210,1721473944655,-500.0,0.00034794,14]
[332720211,1721473944665,-1355.38,0.00034794,14]
[332720212,1721473944674,-1163.9,0.00034794,14]
[332720213,1721473944684,-1583.51,0.00034794,14]
[332720214,1721473944694,-3298.21,0.00034794,14]
[332720215,1721473944703,-519.07,0.00034794,14]
[332720216,1721473944712,-1701.96,0.00034794,14]
[332720217,1721473944722,-500.0,0.00034794,14]
[332720218,1721473944732,-2511.74,0.00034794,14]
[332720219,1721473944741,-691.57,0.00034794,14]
[332720220,1721473944751,-789.5,0.00034794,14]
[332720221,1721473944761,-1632.49,0.00034794,14]
[332720222,1721473944771,-4281.45,0.00034794,14]
[332720223,1721473944781,-1379.78,0.00034794,14]
[332720224,1721473944795,-1742.94,0.00034794,14]
[332720225,1721473944804,-1369.89,0.00034794,14]
[332720226,1721473944814,-1754.36,0.00034794,14]
[332720227,1721473944824,-1621.26,0.00034794,14]
[332720228,1721473944834,-1484.56,0.00034794,14]
[332720229,1721473944844,-856.79,0.00034794,14]
[332720230,1721473944854,-500.0,0.00034794,14]
[332720231,1721473944863,-1607.71,0.00034794,14]
[332720232,1721473944873,-2185.27,0.00034794,14]
[332720233,1721473944884,-590.54,0.00034794,14]
[332720234,1721473944894,-719.08,0.00034794,14]
[332720235,1721473944904,-5863.23,0.00034794,14]
[332720236,1721473945153,-500.0,0.00034794,14]
[332720237,1721473945195,-500.0,0.00034794,14]
[332720238,1721473945206,-3835.27,0.00034794,14]
[332720239,1721473945216,-2327.81,0.00034794,14]
[332720240,1721473945226,-3385.14,0.00034794,14]
[332720241,1721473945235,-1444.8,0.00034794,14]
[332720242,1721473945245,-500.0,0.00034794,14]
[332720243,1721473945255,-679.79,0.00034794,14]
[332720244,1721473945265,-1484.07,0.00034794,14]
[332720245,1721473945275,-1229.52,0.00034794,14]
[332720246,1721473945284,-716.12,0.00034794,14]
[332720247,1721473945294,-500.0,0.00034794,14]
[332720248,1721473945304,-500.0,0.00034794,14]
[332720249,1721473945314,-500.0,0.00034794,14]
[332720250,1721473945324,-803.16,0.00034794,14]
[332720251,1721473945334,-1585.29,0.00034794,14]
[332720252,1721473945344,-2401.57,0.00034794,14]
[332720253,1721473945353,-1125.98,0.00034794,14]
[332720254,1721473945363,-1460.64,0.00034794,14]
[332720255,1721473945373,-413.41855969,0.00034794,14]
[332720256,1721473945383,-1431.69,0.00034794,14]
[332720257,1721473945392,-1121.56,0.00034794,14]
[332720258,1721473945402,-500.0,0.00034794,14]
[332720259,1721473945412,-1827.29,0.00034794,14]
[332720260,1721473945421,-500.0,0.00034794,14]
[332720261,1721473945431,-1089.7,0.00034794,14]
[332720262,1721473945440,-608.86216455,0.00034794,14]
[332720263,1721473945450,-2971.22,0.00034794,14]
[332720264,1721473945459,-500.0,0.00034794,14]
[332720265,1721473945470,-816.76,0.00034794,14]
[332720266,1721473945479,-517.26,0.00034794,14]
[332720267,1721473945489,-500.0,0.00034794,14]
[332720268,1721473945498,-646.96,0.00034794,2]
[332720269,1721473945508,-591.61,0.00034794,14]
[332720270,1721473945518,-793.45,0.00034794,14]
[332720271,1721473945527,-1182.38,0.00034794,14]
[332720272,1721473945538,-2723.45,0.00034794,14]
[332720273,1721473945547,-500.0,0.00034794,14]
[332720274,1721473945558,-531.66,0.00034794,14]
[332720275,1721473945568,-1127.59,0.00034794,14]
[332720276,1721473945579,-8394.1,0.00034794,14]
[332720277,1721473945590,-500.0,0.00034794,14]
[332720278,1721473945599,-931.4,0.00034794,14]
[332720279,1721473945610,-3205.98,0.00034794,14]
[332720280,1721473945620,-515.86,0.00034794,14]
[332720281,1721473945630,-500.0,0.00034794,14]
[332720282,1721473945640,-925.89,0.00034794,14]
[332720283,1721473945650,-1969.06,0.00034794,14]
[332720284,1721473945661,-527.17,0.00034794,14]
[332720285,1721473945672,-952.34,0.00034794,14]
[332720286,1721473945681,-977.07,0.00034794,14]
[332720287,1721473945692,-669.76,0.00034794,14]
[332720288,1721473945702,-1520.53,0.00034794,14]
[332720289,1721473945712,-500.0,0.00034794,14]
[332720290,1721473945722,-500.0,0.00034794,14]
[332720291,1721473945731,-805.0,0.00034794,14]
[332720292,1721473945741,-10861.79,0.00034794,14]
[332720293,1721473945751,-2329.04,0.00034794,14]
[332720294,1721473945761,-1680.869695,0.000348,30]
[332720295,1721473945771,-600.0,0.0003491,25]
[332720296,1721473945780,-863.47378675,0.0003492,2]
[332720297,1721473945790,-302.0,0.00034924,4]
[332720298,1721473945799,-729.12,0.00034931,14]
[332720299,1721473945808,-1341.92,0.00034931,14]
[332720300,1721473945817,-200.0,0.0003497,2]
[332720301,1721473945828,-450.0,0.0003497,2]
[332720302,1721473945837,-2999.99,0.0003498,2]
[332720303,1721473945847,-3000.0,0.0003498,2]
[332720304,1721473945858,-3000.0,0.0003498,2]
[332720305,1721473945867,-3000.0,0.0003498,2]
[332720306,1721473945876,-3000.0,0.0003498,2]
[332720307,1721473945886,-981.42,0.0003498,2]
[332720308,1721473945895,-5137.0,0.00035,5]
[332720309,1721473945905,-150.0,0.00035,2]
[332720310,1721473945914,-500.0,0.00035,4]
[332720311,1721473945923,-500.0,0.00035,4]
[332720312,1721473945932,-500.0,0.00035,4]
[332720313,1721473945943,-500.0,0.00035,4]
[332720314,1721473945952,-500.0,0.00035,2]
[332720315,1721473945962,-500.0,0.00035,7]
[332720316,1721473945971,-500.0,0.00035,7]
[332720317,1721473945980,-500.0,0.00035,10]
[332720318,1721473945989,-50000.0,0.00035,2]
[332720319,1721473946000,-150.0,0.00035,8]
[332720320,1721473946010,-1000.0,0.00035,2]
[332720321,1721473946019,-1000.0,0.00035,10]
[332720322,1721473946029,-500.0,0.00035,2]
[332720323,1721473946040,-500.0,0.00035,7]
[332720324,1721473946050,-155.0,0.00035,4]
[332720325,1721473946059,-925.0,0.00035,2]
[332720326,1721473946069,-794.264678,0.00035,2]
[332720327,1721473946079,-10000.0,0.00035,4]
[332720328,1721473946088,-12737.0,0.00035,4]
[332720329,1721473946098,-13191.0,0.00035,4]
[332720330,1721473946108,-5467.0,0.00035,4]
[332720331,1721473946118,-5190.0,0.00035,4]
[332720332,1721473946129,-2241.159593,0.00035,30]
[332720333,1721473946139,-650.0,0.00035,2]
[332720334,1721473946149,-1069.21992995,0.00035,2]
[332720335,1721473946160,-1000.0,0.00035,7]
[332720336,1721473946171,-1074.1873187,0.00035068,2]
[332720337,1721473946181,-1074.1873187,0.00035068,2]
[332720338,1721473946192,-729.12,0.00035068,14]
[332720339,1721473946201,-1341.92,0.00035068,14]
[332720340,1721473946211,-500.0,0.00035068,14]
[332720341,1721473946221,-500.0,0.00035068,14]
[332720342,1721473946231,-500.0,0.00035068,14]
[332720343,1721473946240,-368.06037406,0.00035068,14]
[332720344,1721473946250,-637.22,0.00035068,14]
[332720345,1721473946261,-500.0,0.00035068,14]
[332720346,1721473946271,-500.0,0.00035068,14]
[332720347,1721473946280,-665.42,0.00035068,14]
[332720348,1721473946290,-500.0,0.00035068,14]
[332720349,1721473946299,-500.0,0.00035068,14]
[332720350,1721473946308,-500.0,0.00035068,14]
[332720351,1721473946318,-500.0,0.00035068,14]
[332720352,1721473946327,-785.16,0.00035068,14]
[332720353,1721473946336,-500.0,0.00035068,14]
[332720354,1721473946346,-1268.79,0.00035068,14]
[332720355,1721473946355,-500.0,0.00035068,14]
[332720356,1721473946365,-500.0,0.00035068,14]
[332720357,1721473946374,-657.46,0.00035068,14]
[332720358,1721473946383,-500.0,0.00035068,14]
[332720359,1721473946393,-500.0,0.00035068,14]
[332720360,1721473946403,-200.0,0.00035068,14]
[332720361,1721473946413,-656.33,0.00035068,14]
[332720362,1721473946423,-740.41,0.00035068,14]
[332720363,1721473946434,-500.0,0.00035068,14]
[332720364,1721473946444,-605.89,0.00035068,14]
[332720365,1721473946453,-500.0,0.00035068,14]
[332720366,1721473946463,-500.0,0.00035068,14]
[332720367,1721473946474,-869.42,0.00035068,14]
[332720368,1721473946483,-613.28,0.00035068,14]
[332720369,1721473946493,-590.63684842,0.00035068,14]
[332720370,1721473946503,-500.0,0.00035068,14]
[332720371,1721473946512,-692.13,0.00035068,14]
[332720372,1721473946522,-500.0,0.00035068,14]
[332720373,1721473946531,-500.0,0.00035068,14]
[332720374,1721473946542,-500.0,0.00035068,14]
[332720375,1721473946553,-506.09,0.00035068,14]
[332720376,1721473946563,-692.91,0.00035068,14]
[332720377,1721473946574,-660.88,0.00035068,14]
[332720378,1721473946583,-626.34,0.00035068,14]
[332720379,1721473946592,-562.29,0.00035068,14]
[332720380,1721473946602,-500.0,0.00035068,14]
[332720381,1721473946612,-500.0,0.00035068,14]
[332720382,1721473946621,-500.0,0.00035068,14]
[332720383,1721473946631,-500.0,0.00035068,14]
[332720384,1721473946640,-500.0,0.00035068,14]
[332720385,1721473946649,-500.0,0.00035068,14]
[332720386,1721473946658,-649.1,0.00035068,14]
[332720387,1721473946667,-525.64,0.00035068,14]
[332720388,1721473946677,-549.87,0.00035068,14]
[332720389,1721473946686,-500.0,0.00035068,14]
[332720390,1721473946696,-500.0,0.00035068,14]
[332720391,1721473946705,-500.0,0.00035068,14]
[332720392,1721473946715,-763.4,0.00035068,14]
[332720393,1721473946724,-500.0,0.00035068,14]
[332720394,1721473946733,-500.0,0.00035068,14]
[332720395,1721473946743,-500.0,0.00035068,14]
[332720396,1721473946752,-500.0,0.00035068,14]
[332720397,1721473946762,-500.0,0.00035068,14]
[332720398,1721473946772,-1119.59,0.00035068,14]
[332720399,1721473946781,-500.0,0.00035068,14]
[332720400,1721473946793,-500.0,0.00035068,14]
[332720401,1721473946803,-500.0,0.00035068,14]
[332720402,1721473946812,-155.6,0.00035068,14]
[332720403,1721473946822,-545.99,0.00035068,14]
[332720404,1721473946832,-500.0,0.00035068,14]
[332720405,1721473946841,-500.0,0.00035068,14]
[332720406,1721473946851,-649.25,0.00035068,14]
[332720407,1721473946860,-500.0,0.00035068,14]
[332720408,1721473946870,-500.0,0.00035068,14]
[332720409,1721473946880,-500.0,0.00035068,14]
[332720410,1721473946890,-500.0,0.00035068,14]
[332720411,1721473946900,-500.0,0.00035068,14]
[332720412,1721473946910,-500.0,0.00035068,14]
[332720413,1721473946920,-500.0,0.00035068,14]
[332720414,1721473946929,-1601.88,0.00035068,14]
[332720415,1721473946939,-500.0,0.00035068,14]
[332720416,1721473946949,-500.0,0.00035068,14]
[332720417,1721473946959,-500.0,0.00035068,14]
[332720418,1721473946969,-500.0,0.00035068,14]
[332720419,1721473946979,-500.0,0.00035068,14]
[332720420,1721473946988,-500.0,0.00035068,14]
[332720421,1721473946998,-500.0,0.00035068,14]
[332720422,1721473947007,-526.06,0.00035068,14]
[332720423,1721473947016,-500.0,0.00035068,14]
[332720424,1721473947026,-500.0,0.00035068,14]
[332720425,1721473947035,-558.4,0.00035068,14]
[332720426,1721473947045,-581.31715773,0.00035068,14]
[332720427,1721473947057,-500.0,0.00035068,14]
[332720428,1721473947067,-500.0,0.00035068,14]
[332720429,1721473947077,-500.0,0.00035068,14]
[332720430,1721473947087,-500.0,0.00035068,14]
[332720431,1721473947096,-506.21359957,0.00035068,14]
[332720432,1721473947105,-658.83,0.00035068,14]
[332720433,1721473947115,-500.0,0.00035068,14]
[332720434,1721473947124,-500.0,0.00035068,14]
[332720435,1721473947133,-500.0,0.00035068,14]
[332720436,1721473947143,-500.0,0.00035068,14]
[332720437,1721473947153,-2195.07,0.00035068,14]
[332720438,1721473947162,-500.14,0.00035068,14]
[332720439,1721473947172,-500.0,0.00035068,14]
[332720440,1721473947181,-553.59,0.00035068,14]
[332720441,1721473947191,-500.0,0.00035068,14]
[332720442,1721473947200,-500.0,0.00035068,14]
[332720443,1721473947209,-500.0,0.00035068,14]
[332720444,1721473947219,-500.0,0.00035068,14]
[332720445,1721473947228,-972.4,0.00035068,14]
[332720446,1721473947238,-500.0,0.00035068,14]
[332720447,1721473947248,-500.0,0.00035068,14]
[332720448,1721473947258,-1241.69,0.00035068,14]
[332720449,1721473947269,-782.5,0.00035068,14]
[332720450,1721473947278,-819.47,0.00035068,14]
[332720451,1721473947288,-500.0,0.00035068,14]
[332720452,1721473947297,-506.08358203,0.00035068,14]
[332720453,1721473947306,-1002.9,0.00035068,14]
[332720454,1721473947315,-776.99,0.00035068,14]
[332720455,1721473947325,-748.98,0.00035068,14]
[332720456,1721473947335,-526.05,0.00035068,14]
[332720457,1721473947344,-500.0,0.00035068,14]
[332720458,1721473947353,-500.0,0.00035068,14]
[332720459,1721473947363,-500.0,0.00035068,14]
[332720460,1721473947373,-690.54,0.00035068,14]
[332720461,1721473947382,-306.92279979,0.00035068,14]
[332720462,1721473947392,-500.0,0.00035068,14]
[332720463,1721473947401,-528.39416331,0.00035068,14]
[332720464,1721473947411,-721.82,0.00035068,14]
[332720465,1721473947421,-500.0,0.00035068,14]
[332720466,1721473947430,-584.5,0.00035068,14]
[332720467,1721473947439,-500.0,0.00035068,14]
[332720468,1721473947448,-1091.35,0.00035068,14]
[332720469,1721473947458,-759.12,0.00035068,14]
[332720470,1721473947470,-196.08395308,0.00035068,14]
[332720471,1721473947479,-500.0,0.00035068,14]
[332720472,1721473947489,-738.7,0.00035068,14]
[332720473,1721473947498,-500.0,0.00035068,14]
[332720474,1721473947508,-1236.72,0.00035068,14]
[332720475,1721473947517,-500.0,0.00035068,14]
[332720476,1721473947526,-1632.34,0.00035068,14]
[332720477,1721473947536,-500.0,0.00035068,14]
[332720478,1721473947545,-500.0,0.00035068,14]
[332720479,1721473947555,-500.0,0.00035068,14]
[332720480,1721473947651,-500.0,0.00035068,14]
[332720481,1721473947662,-500.0,0.00035068,14]
[332720482,1721473947672,-1335.93,0.00035068,14]
[332720483,1721473947681,-500.0,0.00035068,14]
[332720484,1721473947692,-857.36,0.00035068,14]
[332720485,1721473947702,-500.0,0.00035068,14]
[332720486,1721473947711,-500.0,0.00035068,14]
[332720487,1721473947720,-478.3969384,0.00035068,14]
[332720488,1721473947730,-2213.83,0.00035068,14]
[332720489,1721473947740,-500.0,0.00035068,14]
[332720490,1721473947750,-278.01,0.00035068,14]
[332720491,1721473947759,-500.0,0.00035068,14]
[332720492,1721473947768,-988.37,0.00035068,14]
[332720493,1721473947778,-500.0,0.00035068,14]
[332720494,1721473947787,-500.0,0.00035068,14]
[332720495,1721473947796,-500.0,0.00035068,14]
[332720496,1721473947805,-1435.63,0.00035068,14]
[332720497,1721473947814,-1384.5,0.00035068,14]
[332720498,1721473947825,-500.0,0.00035068,14]
[332720499,1721473947835,-500.0,0.00035068,14]
[332720500,1721473947847,-629.23,0.00035068,14]
[332720501,1721473947857,-502.82,0.00035068,14]
[332720502,1721473947867,-500.0,0.00035068,14]
[332720503,1721473947876,-883.99,0.00035068,14]
[332720504,1721473947886,-1123.37,0.00035068,14]
[332720505,1721473947895,-500.0,0.00035068,14]
[332720506,1721473947904,-500.0,0.00035068,14]
[332720507,1721473947913,-1157.36,0.00035068,14]
[332720508,1721473947924,-500.0,0.00035068,14]
[332720509,1721473947935,-500.0,0.00035068,14]
[332720510,1721473947946,-528.33,0.00035068,14]
[332720511,1721473947955,-500.0,0.00035068,14]
[332720512,1721473947964,-500.0,0.00035068,14]
[332720513,1721473947973,-500.0,0.00035068,14]
[332720514,1721473947982,-500.0,0.00035068,14]
[332720515,1721473947991,-500.0,0.00035068,14]
[332720516,1721473948000,-1278.32,0.00035068,14]
[332720517,1721473948010,-500.0,0.00035068,14]
[332720518,1721473948019,-500.0,0.00035068,14]
[332720519,1721473948028,-1279.27,0.00035068,14]
[332720520,1721473948037,-1348.27,0.00035068,14]
[332720521,1721473948046,-500.0,0.00035068,14]
[332720522,1721473948055,-500.0,0.00035068,14]
[332720523,1721473948065,-500.0,0.00035068,14]
[332720524,1721473948074,-500.0,0.00035068,14]
[332720525,1721473948082,-573.23,0.00035068,14]
[332720526,1721473948092,-684.48,0.00035068,14]
[332720527,1721473948101,-887.08,0.00035068,14]
[332720528,1721473948110,-500.0,0.00035068,14]
[332720529,1721473948119,-500.0,0.00035068,14]
[332720530,1721473948128,-500.0,0.00035068,14]
[332720531,1721473948138,-206.06896495,0.00035068,14]
[332720532,1721473948147,-500.0,0.00035068,14]
[332720533,1721473948156,-500.0,0.00035068,14]
[332720534,1721473948165,-500.0,0.00035068,14]
[332720535,1721473948175,-500.0,0.00035068,14]
[332720536,1721473948184,-570.84,0.00035068,14]
[332720537,1721473948195,-500.0,0.00035068,14]
[332720538,1721473948204,-1048.81,0.00035068,14]
[332720539,1721473948213,-500.0,0.00035068,14]
[332720540,1721473948223,-1318.81,0.00035068,14]
[332720541,1721473948233,-704.95,0.00035068,14]
[332720542,1721473948242,-746.38,0.00035068,14]
[332720543,1721473948252,-1196.24,0.00035068,14]
[332720544,1721473948261,-500.0,0.00035068,14]
[332720545,1721473948271,-500.0,0.00035068,14]
[332720546,1721473948281,-500.0,0.00035068,14]
[332720547,1721473948290,-500.0,0.00035068,14]
[332720548,1721473948299,-500.0,0.00035068,14]
[332720549,1721473948308,-500.0,0.00035068,14]
[332720550,1721473948317,-500.0,0.00035068,14]
[332720551,1721473948327,-728.0,0.00035068,14]
[332720552,1721473948336,-500.0,0.00035068,14]
[332720553,1721473948345,-500.0,0.00035068,14]
[332720554,1721473948355,-500.0,0.00035068,14]
[332720555,1721473948364,-500.0,0.00035068,14]
[332720556,1721473948374,-512.93,0.00035068,14]
[332720557,1721473948383,-680.74,0.00035068,14]
[332720558,1721473948392,-712.41,0.00035068,14]
[332720559,1721473948402,-500.0,0.00035068,14]
[332720560,1721473948411,-500.0,0.00035068,14]
[332720561,1721473948421,-500.0,0.00035068,14]
[332720562,1721473948431,-1566.46,0.00035068,14]
[332720563,1721473948441,-500.0,0.00035068,14]
[332720564,1721473948450,-689.74,0.00035068,14]
[332720565,1721473948461,-856.87,0.00035068,14]
[332720566,1721473948471,-500.0,0.00035068,14]
[332720567,1721473948480,-912.41,0.00035068,14]
[332720568,1721473948490,-539.45,0.00035068,14]
[332720569,1721473948500,-500.0,0.00035068,14]
[332720570,1721473948511,-1222.76,0.00035068,14]
[332720571,1721473948521,-500.0,0.00035068,14]
[332720572,1721473948531,-907.05,0.00035068,14]
[332720573,1721473948541,-500.0,0.00035068,14]
[332720574,1721473948551,-500.0,0.00035068,14]
[332720575,1721473948561,-662.46,0.00035068,14]
[332720576,1721473948571,-500.0,0.00035068,14]
[332720577,1721473948579,-500.0,0.00035068,14]
[332720578,1721473948588,-500.0,0.00035068,14]
[332720579,1721473948598,-526.38,0.00035068,14]
[332720580,1721473948607,-500.0,0.00035068,14]
[332720581,1721473948616,-500.0,0.00035068,14]
[332720582,1721473948625,-500.0,0.00035068,14]
[332720583,1721473948634,-500.0,0.00035068,14]
[332720584,1721473948643,-930.3,0.00035068,14]
[332720585,1721473948652,-500.0,0.00035068,14]
[332720586,1721473948662,-500.0,0.00035068,14]
[332720587,1721473948671,-500.0,0.00035068,14]
[332720588,1721473948681,-500.0,0.00035068,14]
[332720589,1721473948691,-500.0,0.00035068,14]
[332720590,1721473948700,-500.0,0.00035068,14]
[332720591,1721473948709,-500.0,0.00035068,14]
[332720592,1721473948718,-500.0,0.00035068,14]
[332720593,1721473948727,-500.0,0.00035068,14]
[332720594,1721473948736,-500.0,0.00035068,14]
[332720595,1721473948745,-500.0,0.00035068,14]
[332720596,1721473948754,-500.0,0.00035068,14]
[332720597,1721473948764,-1204.26,0.00035068,14]
[332720598,1721473948773,-500.0,0.00035068,14]
[332720599,1721473948783,-500.0,0.00035068,14]
[332720600,1721473948795,-500.0,0.00035068,14]
[332720601,1721473948805,-500.0,0.00035068,14]
[332720602,1721473948814,-652.64,0.00035068,14]
[332720603,1721473948823,-725.14,0.00035068,14]
[332720604,1721473948832,-559.46,0.00035068,14]
[332720605,1721473948841,-1257.23,0.00035068,14]
[332720606,1721473948850,-1075.65,0.00035068,14]
[332720607,1721473948859,-520.88,0.00035068,14]
[332720608,1721473948868,-500.0,0.00035068,14]
[332720609,1721473948877,-969.99,0.00035068,14]
[332720610,1721473948886,-500.0,0.00035068,14]
[332720611,1721473948897,-856.07,0.00035068,14]
[332720612,1721473948906,-1295.85,0.00035068,14]
[332720613,1721473948916,-500.0,0.00035068,14]
[332720614,1721473948925,-585.03,0.00035068,14]
[332720615,1721473948934,-500.0,0.00035068,14]
[332720616,1721473948943,-1002.09,0.00035068,14]
[332720617,1721473948953,-500.0,0.00035068,14]
[332720618,1721473948962,-500.0,0.00035068,14]
[332720619,1721473948971,-1239.04,0.00035068,14]
[332720620,1721473948981,-3024.54,0.00035068,14]
[332720621,1721473948990,-500.0,0.00035068,14]
[332720622,1721473949000,-500.0,0.00035068,14]
[332720623,1721473949009,-2112.58882147,0.00035068,14]
[332720624,1721473949018,-1094.07,0.00035068,14]
[332720625,1721473949027,-500.0,0.00035068,14]
[332720626,1721473949036,-819.64,0.00035068,14]
[332720627,1721473949045,-573.72,0.00035068,14]
[332720628,1721473949055,-500.0,0.00035068,14]
[332720629,1721473949064,-1422.16,0.00035068,14]
[332720630,1721473949073,-500.0,0.00035068,14]
[332720631,1721473949082,-1143.68,0.00035068,14]
[332720632,1721473949091,-1073.0,0.00035068,14]
[332720633,1721473949100,-1114.48,0.00035068,14]
[332720634,1721473949109,-1114.51,0.00035068,14]
[332720635,1721473949118,-1019.09,0.00035068,14]
[332720636,1721473949127,-1124.4,0.00035068,14]
[332720637,1721473949136,-500.0,0.00035068,14]
[332720638,1721473949145,-517.89669129,0.00035068,14]
[332720639,1721473949154,-500.0,0.00035068,14]
[332720640,1721473949163,-500.0,0.00035068,14]
[332720641,1721473949176,-1042.66,0.00035068,14]
[332720642,1721473949185,-1109.04,0.00035068,14]
[332720643,1721473949194,-500.0,0.00035068,14]
[332720644,1721473949203,-1114.06,0.00035068,14]
[332720645,1721473949213,-500.0,0.00035068,14]
[332720646,1721473949222,-500.0,0.00035068,14]
[332720647,1721473949232,-594.09,0.00035068,14]
[332720648,1721473949241,-520.16,0.00035068,14]
[332720649,1721473949250,-1211.15,0.00035068,14]
[332720650,1721473949259,-500.0,0.00035068,14]
[332720651,1721473949269,-279.78743589,0.00035068,14]
[332720652,1721473949278,-500.0,0.00035068,14]
[332720653,1721473949287,-469.50814892,0.00035068,14]
[332720654,1721473949297,-500.0,0.00035068,14]
[332720655,1721473949306,-500.0,0.00035068,14]
[332720656,1721473949316,-621.34371403,0.00035068,14]
[332720657,1721473949325,-500.0,0.00035068,14]
[332720658,1721473949334,-643.38,0.00035068,14]
[332720659,1721473949343,-1101.45,0.00035068,14]
[332720660,1721473949353,-626.45,0.00035068,14]
[332720661,1721473949362,-500.0,0.00035068,14]
[332720662,1721473949372,-1299.14,0.00035068,14]
[332720663,1721473949380,-500.0,0.00035068,14]
[332720664,1721473949390,-500.0,0.00035068,14]
[332720665,1721473949399,-524.77,0.00035068,14]
[332720666,1721473949408,-554.72,0.00035068,14]
[332720667,1721473949417,-939.51,0.00035068,14]
[332720668,1721473949426,-2026.13,0.00035068,14]
[332720669,1721473949435,-546.06,0.00035068,14]
[332720670,1721473949445,-880.55,0.00035068,14]
[332720671,1721473949455,-580.73,0.00035068,14]
[332720672,1721473949464,-1165.94,0.00035068,14]
[332720673,1721473949473,-500.0,0.00035068,14]
[332720674,1721473949482,-885.11,0.00035068,14]
[332720675,1721473949492,-510.41,0.00035068,14]
[332720676,1721473949501,-500.0,0.00035068,14]